bitfinex/quotes_ETHUSD_20250215
["timestamp","ask_amount","ask_price","bid_price","bid_amount"]
[1739647244395,0.52903059,2703.8,2703.5,3.69887]
[1739647245630,0.52903059,2703.8,2703.4,0.65596576]
[1739647246124,0.52903059,2703.8,2703.4,4.35499576]
[1739647247121,0.52903059,2703.8,2703.4,0.65596576]
[1739647247516,0.52903059,2703.8,2703.4,4.35494576]
[1739647249230,0.52903059,2703.8,2703.5,3.69882]
[1739647249628,0.52903059,2703.8,2703.4,0.65596576]
[1739647249933,0.52903059,2703.8,2703.4,3.699]
[1739647251826,0.52903059,2703.8,2703.3,9.43431756]
[1739647252129,3.69942,2703.2,2702.7,5.06617956]
[1739647252426,0.8012,2703.1,2702.7,1.36626956]
[1739647253927,0.8012,2703.1,2702.9,1.36626956]
[1739647256630,0.52903059,2703.0,2702.9,1.36626956]
[1739647258227,0.52903059,2703.0,2702.9,9.64591352]
[1739647258631,0.52903059,2703.0,2702.9,10.19591352]
[1739647262399,0.52903059,2703.4,2703.3,3.69918]
[1739647262603,0.52903059,2703.4,2703.3,5.06544956]
[1739647263232,0.52903059,2703.4,2703.3,1.36626956]
[1739647265343,0.52903059,2703.8,2703.3,2.69881952]
[1739647265630,0.52903059,2703.8,2703.7,3.69863]
[1739647266335,0.52903059,2703.8,2703.6,1.36626956]
[1739647267634,0.52903059,2703.8,2703.5,3.69878]
[1739647267635,0.52903059,2703.8,2703.5,6.51537292]
[1739647268133,0.8068,2703.7,2703.5,6.51537292]
[1739647276039,0.8068,2703.7,2703.5,3.69878]
[1739647277457,0.52903059,2703.8,2703.5,3.69878]
[1739647281963,0.52903059,2703.8,2703.3,5.03164996]
[1739647282166,0.52903059,2703.8,2703.4,3.69903]
[1739647282658,4.22760059,2703.8,2703.3,3.6991]
[1739647284263,4.22760059,2703.8,2703.2,2.81659292]
[1739647284264,0.787,2703.7,2703.2,2.81659292]
[1739647284480,4.4857,2703.7,2703.3,3.0]
[1739647285053,0.787,2703.5,2702.9,7.31113292]
[1739647285384,0.787,2703.5,2703.0,3.69956]
[1739647285385,5.01501059,2703.5,2703.0,3.69956]
[1739647285880,1.31603059,2703.5,2703.0,3.69956]
[1739647286472,1.31603059,2703.5,2703.0,3.73655167]
[1739647286651,1.31603059,2703.5,2703.1,3.69945]
[1739647289177,1.31603059,2703.5,2703.0,3.69956]
[1739647290390,1.31603059,2703.5,2703.0,3.73651173]
[1739647290550,1.31603059,2703.5,2703.1,3.69941]
[1739647292305,0.52903059,2703.5,2703.1,3.69941]
[1739647292454,0.52903059,2703.5,2703.2,6.92642484]
[1739647292653,0.52903059,2703.5,2703.3,3.69914]
[1739647293253,0.52903059,2703.5,2703.4,3.69904]
[1739647293885,0.52903059,2703.5,2703.3,3.69914]
[1739647294451,0.52903059,2703.5,2703.3,7.39824]
[1739647294649,0.52903059,2703.5,2703.4,1.13991731]
[1739647295071,0.785,2703.7,2703.4,4.83895731]
[1739647295272,0.52903059,2703.8,2703.6,3.69869]
[1739647295925,0.52903059,2703.8,2703.5,0.84768536]
[1739647296706,0.52903059,2703.8,2703.5,4.54653536]
[1739647296916,0.52903059,2703.8,2703.5,5.48507363]
[1739647297500,0.52903059,2703.8,2703.5,1.78622363]
[1739647297705,0.52903059,2703.8,2703.6,3.69875]
[1739647299205,0.52903059,2703.8,2703.5,0.84768536]
[1739647299421,0.52903059,2703.8,2703.5,4.50955]
[1739647299781,0.52903059,2703.8,2703.5,0.8107]
[1739647301503,0.52903059,2703.8,2703.4,3.69897]
[1739647302533,0.52903059,2703.8,2703.4,7.39793]
[1739647302739,0.52903059,2703.8,2703.4,3.69896]
[1739647303102,0.785,2703.7,2703.4,3.69896]
[1739647304335,0.785,2703.7,2703.4,3.69895]
[1739647305640,0.785,2703.7,2703.5,1.36585454]
[1739647309338,0.785,2703.7,2703.3,4.36585454]
[1739647309514,8.18244,2703.7,2703.3,1.36585454]
[1739647309716,5.35484706,2703.7,2703.3,1.36585454]
[1739647310348,3.69878,2703.6,2703.3,1.36585454]
[1739647311639,3.69878,2703.6,2703.1,5.06530454]
[1739647313065,0.52903059,2703.5,2703.1,5.06530454]
[1739647316172,0.52903059,2703.5,2703.1,5.10229505]
[1739647316471,0.52903059,2703.5,2703.2,3.6993]
[1739647317368,0.52903059,2703.5,2703.3,3.69918]
[1739647317595,0.52903059,2703.5,2703.2,3.6993]
[1739647318300,0.52903059,2703.5,2703.2,4.516]
[1739647321996,0.52903059,2703.5,2703.4,3.69904]
[1739647322209,0.52903059,2703.5,2703.4,3.73602658]
[1739647322370,0.52903059,2703.5,2703.4,4.48124]
[1739647322874,0.52903059,2703.5,2703.4,4.518226]
[1739647324962,0.52903059,2703.8,2703.5,3.69878]
[1739647325123,0.52903059,2703.8,2703.5,1.36585454]
[1739647325271,0.52903059,2703.8,2703.6,3.69875]
[1739647325474,0.52903059,2703.8,2703.6,3.69877]
[1739647327007,0.52903059,2703.8,2703.5,5.10169985]
[1739647328313,0.52903059,2703.8,2703.6,3.69876]
[1739647330007,0.52903059,2703.8,2703.7,3.69863]
[1739647330208,0.52903059,2703.8,2703.7,4.57865298]
[1739647330408,0.52903059,2703.8,2703.7,5.94450752]
[1739647330779,0.52903059,2704.2,2703.9,3.69836]
[1739647330974,0.52903059,2704.2,2704.1,5.84613454]
[1739647331210,0.52903059,2704.2,2704.1,1.36585454]
[1739647332929,0.52903059,2704.2,2704.1,2.32028599]
[1739647333132,0.52903059,2704.2,2704.1,6.01836599]
[1739647335048,0.52903059,2704.2,2704.1,2.32028599]
[1739647336815,0.52903059,2704.2,2704.1,6.05534393]
[1739647337015,0.52903059,2704.2,2704.1,6.01836599]
[1739647337240,0.52903059,2704.2,2704.1,6.05534317]
[1739647337449,0.52903059,2704.2,2704.1,6.01836599]
[1739647339453,0.52903059,2704.2,2704.1,6.88584232]
[1739647340446,0.52903059,2704.6,2704.3,3.69778]
[1739647340657,0.52903059,2704.6,2704.4,0.369778]
[1739647345447,0.52903059,2704.6,2704.4,4.067378]
[1739647345824,0.52903059,2704.6,2704.4,0.369778]
[1739647346756,0.52903059,2704.6,2704.5,5.06339454]
[1739647347058,0.52903059,2704.6,2704.5,5.10036633]
[1739647347224,0.52903059,2704.6,2704.5,6.10019676]
[1739647350878,0.52903059,2704.6,2704.5,9.10019676]
[1739647351061,0.52903059,2704.8,2704.5,9.06322497]
[1739647351247,0.52903059,2704.8,2704.5,5.36568497]
[1739647351445,0.52903059,2704.8,2704.5,5.40265586]
[1739647351646,0.52903059,2704.8,2704.6,1.03005339]
[1739647352079,0.52903059,2704.8,2704.6,4.76440423]
[1739647352280,0.52903059,2704.8,2704.6,4.72743339]
[1739647353103,1.29923059,2705.1,2704.7,5.06307454]
[1739647353602,1.29923059,2705.1,2704.7,5.84597454]
[1739647353749,1.29923059,2705.1,2704.9,1.36585454]
[1739647353949,0.52903059,2705.1,2704.9,1.36585454]
[1739647354174,0.52903059,2705.1,2704.9,5.06279454]
[1739647354482,0.52903059,2705.1,2704.9,1.36585454]
[1739647355748,0.52903059,2705.1,2705.0,3.69685]
[1739647355972,0.52903059,2705.1,2705.0,4.97855953]
[1739647357562,0.52903059,2705.4,2705.0,5.76915953]
[1739647357903,4.22538059,2705.4,2705.1,1.36585454]
[1739647358611,3.69649,2705.3,2705.1,1.36585454]
[1739647358762,0.8032,2705.2,2704.9,1.36585454]
[1739647358959,0.8032,2705.2,2704.9,1.90817407]
[1739647359307,4.49979,2705.2,2704.9,1.90817407]
[1739647359507,0.52903059,2705.4,2705.1,1.36585454]
[1739647359791,0.52903059,2705.4,2705.3,1.36585454]
[1739647360789,0.52903059,2705.4,2705.1,1.36585454]
[1739647360998,0.52903059,2705.4,2705.2,0.88532345]
[1739647362198,0.52903059,2705.9,2705.5,3.69604]
[1739647362496,1.33223059,2706.2,2705.7,7.4864]
[1739647362709,5.02745059,2706.2,2705.8,1.03000101]
[1739647362914,5.02748059,2706.2,2705.8,1.03000101]
[1739647363218,1.33223059,2706.2,2705.8,1.03000101]
[1739647364012,5.02749059,2706.2,2705.8,1.03000101]
[1739647364212,3.69543,2706.1,2705.8,1.03000101]
[1739647364416,0.8032,2706.0,2705.8,1.03000101]
[1739647365016,4.49881,2706.0,2705.8,1.03000101]
[1739647365211,4.49881,2706.0,2705.7,3.0]
[1739647365518,3.69565,2705.9,2705.4,7.48688]
[1739647366412,4.22468059,2705.9,2705.4,7.48688]
[1739647366604,4.22468059,2705.9,2705.3,5.81361011]
[1739647366788,3.69582,2705.8,2705.3,5.81361011]
[1739647366987,3.69582,2705.8,2705.4,1.11723036]
[1739647367407,3.69582,2705.8,2705.4,4.11723036]
[1739647369514,7.39168,2705.8,2705.4,4.11723036]
[1739647369714,0.7944,2705.7,2705.4,4.11723036]
[1739647369923,0.7944,2705.7,2705.3,2.81361011]
[1739647370230,4.49032,2705.7,2705.3,2.81361011]
[1739647370697,0.7944,2705.7,2705.3,5.81361011]
[1739647372089,0.7944,2705.7,2705.3,3.0]
[1739647372284,3.69611,2705.6,2705.3,3.0]
[1739647372503,7.39228,2705.6,2705.3,3.0]
[1739647373216,3.69611,2705.6,2705.3,3.0]
[1739647373615,3.69611,2705.6,2705.0,7.28724011]
[1739647373830,3.69611,2705.6,2705.0,8.43990007]
[1739647374018,4.49068,2705.5,2705.1,3.0]
[1739647374518,5.01971059,2705.5,2705.0,6.51044011]
[1739647375917,1.32343059,2705.5,2705.0,10.20722011]
[1739647376221,1.32343059,2705.5,2705.0,6.51039011]
[1739647377486,5.01962059,2705.5,2705.0,6.51039011]
[1739647385324,3.69639,2705.4,2705.0,2.81361011]
[1739647385554,0.791,2705.1,2704.9,3.0]
[1739647385732,0.791,2705.1,2704.8,1.36446134]
[1739647386657,0.791,2705.1,2704.8,4.36446134]
[1739647386859,0.791,2705.1,2704.8,1.36446134]
[1739647388877,4.4878,2705.1,2704.8,1.36446134]
[1739647389627,0.791,2705.1,2704.8,1.36446134]
[1739647390264,4.48776,2705.1,2704.8,1.36446134]
[1739647392960,3.69693,2705.0,2704.6,1.36446134]
[1739647393147,4.22596059,2705.0,2704.6,1.36446134]
[1739647396055,4.22596059,2705.0,2704.4,3.0]
[1739647396056,3.6972,2704.8,2704.4,1.36446134]
[1739647396245,0.8094,2704.7,2704.4,1.36446134]
[1739647396671,4.5067,2704.7,2704.4,1.36446134]
[1739647398064,0.8094,2704.7,2704.4,1.36446134]
[1739647399181,1.33843059,2704.7,2704.4,1.36446134]
[1739647406063,3.69761,2704.5,2704.0,1.36446134]
[1739647406393,4.22664059,2704.5,2704.0,1.36446134]
[1739647406895,3.69783,2704.3,2703.8,5.81323134]
[1739647407390,3.69783,2704.3,2703.8,5.11476134]
[1739647407828,3.69783,2704.3,2703.8,8.81322134]
[1739647408028,3.69783,2704.3,2703.8,9.49915583]
[1739647408334,0.8094,2704.4,2704.0,1.36446134]
[1739647408507,4.50709,2704.4,2704.0,1.36446134]
[1739647408912,4.50708,2704.4,2704.0,1.36446134]
[1739647410426,0.8094,2704.4,2704.0,1.36446134]
[1739647410601,4.22662059,2704.5,2704.2,1.36446134]
[1739647413398,0.52903059,2704.5,2704.4,2.19016134]
[1739647413623,0.52903059,2704.5,2704.4,0.8257]
[1739647413828,0.52903059,2704.5,2704.4,1.92932895]
[1739647414636,0.52903059,2704.5,2704.4,5.62699895]
[1739647417029,0.52903059,2704.8,2704.5,3.69742]
[1739647417529,0.52903059,2704.8,2704.6,3.69729]
[1739647418332,0.52903059,2704.8,2704.7,3.69726]
[1739647418538,0.52903059,2704.8,2704.6,3.0]
[1739647418700,0.52903059,2704.8,2704.7,0.95125095]
[1739647423626,0.52903059,2704.8,2704.7,4.64851095]
[1739647424658,0.52903059,2704.8,2704.7,0.95125095]
[1739647428733,0.52903059,2704.8,2704.7,4.64851095]
[1739647428928,0.52903059,2705.2,2704.9,3.69696]
[1739647429136,0.52903059,2705.6,2705.1,3.78]
[1739647429463,0.52903059,2705.6,2705.3,3.69637]
[1739647431070,0.52903059,2705.6,2705.4,3.6963]
[1739647431288,0.52903059,2705.6,2705.4,4.43926319]
[1739647431647,0.52903059,2705.6,2705.4,0.74296319]
[1739647431857,0.52903059,2705.6,2705.4,4.43918319]
[1739647433575,0.52903059,2705.6,2705.2,3.69649]
[1739647438779,0.8062,2705.5,2705.1,7.47663]
[1739647438984,0.8062,2705.5,2705.2,3.69657]
[1739647439567,0.8062,2705.5,2705.3,1.36396087]
[1739647439763,0.8062,2705.5,2705.3,2.61767696]
[1739647441095,0.8062,2705.5,2705.3,6.31411696]
[1739647444906,0.8062,2705.5,2705.3,10.01055696]
[1739647445222,0.52903059,2705.6,2705.5,7.51547]
[1739647445405,0.52903059,2705.6,2705.5,8.87943087]
[1739647445709,0.52903059,2705.6,2705.5,10.26236857]
[1739647449705,0.52903059,2705.9,2705.5,9.44306857]
[1739647451012,4.22467059,2705.9,2705.5,5.74689857]
[1739647451407,4.22467059,2705.9,2705.5,5.06013087]
[1739647452402,4.22467059,2705.9,2705.5,8.06013087]
[1739647452723,4.22467059,2705.9,2705.6,3.0]
[1739647453613,4.22467059,2705.9,2705.5,4.36396087]
[1739647457430,4.22467059,2705.9,2705.5,8.06013087]
[1739647461232,0.52903059,2705.9,2705.5,8.06013087]
[1739647461435,0.52903059,2705.9,2705.5,9.31769196]
[1739647462805,0.52903059,2705.9,2705.5,8.06013087]
[1739647472015,0.52903059,2705.9,2705.6,3.69596]
[1739647472534,0.52903059,2705.9,2705.7,1.36396087]
[1739647486657,0.52903059,2705.9,2705.6,3.0]
[1739647490567,0.52903059,2705.9,2705.6,6.696]
[1739647490767,0.52903059,2705.9,2705.6,7.87160309]
[1739647497176,0.52903059,2705.9,2705.6,4.17560309]
[1739647497382,0.52903059,2705.9,2705.6,3.0]
[1739647497876,0.52903059,2705.9,2705.6,3.69602]
[1739647509709,0.52903059,2705.9,2705.5,8.06013087]
[1739647510014,4.22468059,2705.9,2705.5,4.36396087]
[1739647510211,4.22468059,2705.9,2705.5,3.0]
[1739647512868,0.8257,2705.8,2705.1,5.81837087]
[1739647513207,0.8257,2705.6,2705.2,3.69657]
[1739647514266,0.8257,2705.6,2705.3,3.69644]
[1739647517921,1.35473059,2705.6,2705.3,3.69644]
[1739647519323,1.35473059,2705.6,2705.2,3.69655]
[1739647520733,1.35473059,2705.6,2705.2,4.56460916]
[1739647522294,1.35473059,2705.6,2705.2,3.69655]
[1739647527256,1.35473059,2705.6,2705.1,5.81837087]
[1739647527419,1.35473059,2705.6,2705.2,3.69648]
[1739647529049,1.35473059,2705.6,2705.1,5.81837087]
[1739647529424,1.35473059,2705.6,2705.2,3.6965]
[1739647529607,1.35473059,2705.6,2705.3,3.69643]
[1739647533172,0.8041,2705.5,2705.2,0.95148709]
[1739647533397,0.8041,2705.5,2704.7,1.36396087]
[1739647533549,0.8041,2705.3,2704.9,3.69698]
[1739647533750,0.8041,2705.3,2704.9,5.06087087]
[1739647533971,0.8041,2705.3,2705.0,3.69682]
[1739647534173,0.8041,2705.3,2705.1,0.50607809]
[1739647538877,1.33313059,2705.3,2705.1,0.50607809]
[1739647549085,1.33313059,2705.3,2705.0,3.69682]
[1739647549679,1.33313059,2705.3,2704.9,5.17786087]
[1739647549876,1.33313059,2705.3,2704.9,8.87484087]
[1739647551584,0.52903059,2705.3,2704.9,8.87484087]
[1739647552792,4.22548059,2705.3,2704.9,4.36396087]
[1739647552957,0.7794,2705.2,2704.9,3.0]
[1739647553273,4.4761,2705.2,2704.7,3.69713]
[1739647553659,4.4761,2705.2,2704.8,3.0]
[1739647556188,0.7794,2705.2,2704.8,3.0]
[1739647556395,4.22548059,2705.3,2704.9,2.11756087]
[1739647556567,0.7979,2705.2,2704.8,3.0]
[1739647556763,4.49448,2705.2,2704.8,3.0]
[1739647559776,4.49464,2705.1,2704.8,3.0]
[1739647559979,5.02367059,2705.1,2704.6,3.0]
[1739647560698,5.02367059,2705.1,2704.6,6.69738]
[1739647560856,3.69688,2705.0,2704.6,3.0]
[1739647561061,3.69688,2705.0,2704.5,5.06137087]
[1739647561062,0.7948,2704.9,2704.5,5.06137087]
[1739647561297,0.6956,2704.9,2704.5,6.36763996]
[1739647563472,0.6956,2704.9,2704.5,2.67022996]
[1739647563678,0.6956,2704.9,2704.6,3.69739]
[1739647564299,0.6956,2704.9,2704.5,3.0]
[1739647564300,4.92171059,2704.9,2704.5,3.0]
[1739647564504,3.69717,2704.8,2704.3,1.36396087]
[1739647564667,3.69717,2704.8,2704.3,4.94656096]
[1739647564668,4.22620059,2704.8,2704.3,4.94656096]
[1739647565303,4.22620059,2704.8,2704.3,8.64433096]
[1739647568497,0.7948,2704.7,2704.3,8.64433096]
[1739647569277,0.7948,2704.7,2704.3,1.94656096]
[1739647570403,0.7948,2704.7,2704.4,3.69767]
[1739647570567,0.7948,2704.7,2704.4,4.9318851]
[1739647571978,0.52903059,2704.8,2704.5,1.36396087]
[1739647572177,0.52903059,2704.8,2704.6,3.69731]
[1739647573274,0.52903059,2704.8,2704.7,8.82542087]
[1739647574004,0.52903059,2705.2,2704.9,3.69691]
[1739647574308,0.52903059,2705.2,2705.1,6.69672]
[1739647575310,4.25266128,2706.5,2705.1,6.69672]
[1739647575311,0.52903059,2705.8,2705.5,0.7939]
[1739647575506,0.52903059,2705.8,2705.5,2.15786087]
[1739647575878,0.52903059,2705.8,2705.5,5.85394087]
[1739647577491,0.52903059,2705.8,2705.5,2.15786087]
[1739647577692,0.52903059,2705.8,2705.5,6.43933696]
[1739647580436,0.52903059,2705.8,2705.6,3.69603]
[1739647581593,0.52903059,2705.8,2705.7,1.36396087]
[1739647582720,0.52903059,2705.8,2705.5,5.07537609]
[1739647582721,0.52903059,2705.8,2705.5,6.43933696]
[1739647583088,0.52903059,2705.8,2705.5,1.94936696]
[1739647584719,0.52903059,2705.8,2705.5,0.58540609]
[1739647585290,0.52903059,2705.8,2705.6,0.42817161]
[1739647587625,0.52903059,2705.8,2705.5,0.58540609]
[1739647593036,0.52903059,2705.8,2705.5,5.64551696]
[1739647594419,0.52903059,2705.8,2705.5,1.94936696]
[1739647594942,4.22481059,2705.8,2705.5,1.94936696]
[1739647595108,4.22481059,2705.8,2705.5,1.36396087]
[1739647595306,0.52903059,2705.8,2705.5,1.36396087]
[1739647595537,0.52903059,2705.8,2705.5,5.06006087]
[1739647597536,0.52903059,2705.8,2705.5,1.36396087]
[1739647601346,0.52903059,2705.8,2705.5,5.06006087]
[1739647601547,0.52903059,2705.8,2705.6,0.88810609]
[1739647601715,0.52903059,2705.8,2705.6,4.58405609]
[1739647602020,0.52903059,2705.8,2705.7,4.36396087]
[1739647602225,0.52903059,2705.8,2705.7,8.05986087]
[1739647604253,0.52903059,2706.0,2705.7,8.05986087]
[1739647604431,0.52903059,2706.0,2705.7,9.32426757]
[1739647607447,0.52903059,2706.0,2705.9,1.36396087]
[1739647609953,0.52903059,2706.0,2705.7,9.32426757]
[1739647610950,0.52903059,2706.0,2705.7,5.62836757]
[1739647611250,0.52903059,2706.0,2705.7,4.2644067]
[1739647613921,0.52903059,2706.0,2705.7,3.0]
[1739647614126,0.7677,2705.9,2705.7,3.0]
[1739647614335,4.46333,2705.9,2705.7,3.0]
[1739647615544,3.69576,2705.8,2705.3,5.82285087]
[1739647615749,3.69576,2705.8,2705.3,9.51922087]
[1739647615959,3.69576,2705.8,2705.4,3.0]
[1739647616157,3.69576,2705.8,2705.3,6.82975296]
[1739647616363,4.46335,2705.9,2705.4,6.6963]
[1739647616562,4.46335,2705.9,2705.5,1.36396087]
[1739647617251,0.7677,2705.9,2705.5,1.36396087]
[1739647618441,4.46334,2705.9,2705.5,1.36396087]
[1739647620670,4.22459059,2706.0,2705.6,0.7699]
[1739647620872,0.52903059,2706.0,2705.7,1.36396087]
[1739647621074,4.45118,2705.9,2705.5,2.71656617]
[1739647621372,4.45118,2705.9,2705.5,1.36396087]
[1739647621942,0.7555,2705.9,2705.5,1.36396087]
[1739647622165,0.7555,2705.9,2705.6,1.17563809]
[1739647622555,0.6059,2705.9,2705.6,1.17563809]
[1739647622757,0.6059,2705.9,2705.4,10.39242]
[1739647622758,4.30161,2705.9,2705.4,6.69619]
[1739647624760,0.6059,2705.9,2705.5,1.36396087]
[1739647624947,0.6059,2705.9,2705.5,5.06009087]
[1739647626969,4.3016,2705.9,2705.5,1.36396087]
[1739647627167,4.3016,2705.9,2705.4,6.69619]
[1739647627345,4.3016,2705.9,2705.4,7.94885109]
[1739647627882,4.83063059,2705.9,2705.4,7.94885109]
[1739647628497,4.83063059,2705.9,2705.4,4.25266109]
[1739647628678,3.69583,2705.8,2705.4,4.25266109]
[1739647629887,3.69583,2705.8,2705.3,2.13386087]
[1739647630068,0.7555,2705.6,2705.1,5.13386087]
[1739647630384,0.7555,2705.6,2705.2,3.69649]
[1739647631560,4.45153,2705.6,2705.1,2.13386087]
[1739647631762,4.45153,2705.6,2705.1,2.65368006]
[1739647633099,4.45153,2705.6,2705.2,3.0]
[1739647633992,4.22506059,2705.6,2705.2,3.0]
[1739647634196,4.45183,2705.4,2705.2,3.0]
[1739647634362,4.45183,2705.4,2704.9,1.36396087]
[1739647634565,4.45183,2705.4,2704.9,1.87007796]
[1739647634566,4.22548059,2705.3,2704.9,1.87007796]
[1739647635158,4.22548059,2705.3,2704.9,1.36396087]
[1739647636879,3.69666,2705.2,2704.8,3.0]
[1739647637067,0.7853,2705.1,2704.7,4.36396087]
[1739647639803,1.31433059,2705.1,2704.7,4.36396087]
[1739647642987,5.01116059,2705.1,2704.7,4.36396087]
[1739647643186,3.69687,2705.0,2704.7,4.36396087]
[1739647643697,3.69687,2705.0,2704.5,1.36396087]
[1739647643898,4.48236,2704.9,2704.5,1.36396087]
[1739647644305,0.7853,2704.9,2704.5,1.36396087]
[1739647644505,0.7853,2704.9,2704.5,3.14617396]
[1739647645500,4.4823,2704.9,2704.5,3.14617396]
[1739647646705,0.7853,2704.9,2704.5,3.14617396]
[1739647647986,4.4823,2704.9,2704.5,3.14617396]
[1739647650389,0.7512,2704.7,2704.4,3.0]
[1739647650590,0.7512,2704.7,2704.2,3.69794]
[1739647652380,3.6974,2704.6,2704.2,3.69794]
[1739647652578,3.6974,2704.6,2704.1,4.36396087]
[1739647652579,3.69748,2704.6,2704.1,4.36396087]
[1739647652879,0.7512,2704.5,2704.1,4.36396087]
[1739647654682,1.28023059,2704.5,2704.1,4.36396087]
[1739647658715,1.28023059,2704.5,2704.1,1.36396087]
[1739647659013,1.28023059,2704.5,2704.1,8.06203087]
[1739647660416,1.28023059,2704.5,2704.1,9.31999896]
[1739647663123,1.28023059,2704.5,2704.1,5.62192896]
[1739647663324,4.97779059,2704.5,2704.1,4.36396087]
[1739647663923,4.97779059,2704.5,2704.1,8.06204087]
[1739647664825,1.28023059,2704.5,2704.1,8.06204087]
[1739647665126,1.28023059,2704.5,2704.1,8.06197087]
[1739647665488,0.52903059,2704.5,2704.3,1.36396087]
[1739647665804,0.52903059,2704.5,2704.3,6.68602696]
[1739647666727,0.52903059,2704.5,2704.3,2.98825696]
[1739647667413,0.52903059,2704.5,2704.3,2.18206087]
[1739647670032,0.52903059,2704.5,2704.3,5.87986087]
[1739647679503,0.52903059,2704.5,2704.4,3.69767]
[1739647682927,0.52903059,2704.5,2704.3,5.87986087]
[1739647683540,0.52903059,2704.5,2704.3,9.57760087]
[1739647683737,0.52903059,2704.5,2704.4,7.65543009]
[1739647684406,0.52903059,2704.7,2704.4,7.65543009]
[1739647687744,0.52903059,2704.7,2704.5,3.69752]
[1739647688844,0.52903059,2704.7,2704.4,3.95776009]
[1739647690154,0.52903059,2704.7,2704.5,3.69746]
[1739647690354,0.52903059,2704.7,2704.5,0.9837281]
[1739647695660,0.52903059,2704.7,2704.5,4.6812581]
[1739647697458,0.52903059,2704.7,2704.6,3.6974]
[1739647697767,0.52903059,2704.7,2704.6,4.4846]
[1739647702183,0.52903059,2705.0,2704.6,4.4846]
[1739647703670,0.52903059,2705.0,2704.7,3.69725]
[1739647712779,0.52903059,2705.0,2704.6,4.48453]
[1739647715059,0.52903059,2705.0,2704.6,0.7872]
[1739647715359,0.52903059,2705.0,2704.7,3.69726]
[1739647725906,0.52903059,2705.0,2704.6,4.48455]
[1739647729595,0.52903059,2705.0,2704.7,3.69725]
[1739647729778,0.52903059,2705.0,2704.6,4.48458]
[1739647737499,0.52903059,2705.0,2704.7,3.69715]
[1739647737705,0.52903059,2705.0,2704.8,3.69705]
[1739647737907,0.7841,2705.2,2704.8,3.69705]
[1739647738800,0.7841,2705.2,2704.8,7.39411]
[1739647743209,0.7841,2705.2,2704.8,3.69705]
[1739647743409,3.69627,2705.5,2704.9,4.20296109]
[1739647743592,4.49307,2705.5,2705.0,4.47225]
[1739647744193,0.7968,2705.5,2705.1,3.69669]
[1739647746478,3.69595,2705.7,2705.0,4.47225]
[1739647746676,3.69595,2705.7,2705.2,3.69658]
[1739647748210,7.39195,2705.7,2705.2,3.69658]
[1739647749817,5.28,2705.4,2705.2,3.69658]
[1739647750308,5.28,2705.4,2705.2,4.43870406]
[1739647750818,5.28,2705.4,2705.3,5.83580087]
[1739647751017,5.28,2705.4,2705.2,0.74212406]
[1739647751312,6.0768,2705.4,2705.1,3.0]
[1739647753584,0.7968,2705.1,2704.6,3.69728]
[1739647753793,0.7968,2705.1,2704.5,2.13936087]
[1739647753794,0.83470637,2705.1,2704.5,5.83682087]
[1739647754218,3.69687,2705.0,2704.5,5.83682087]
[1739647755490,3.69687,2705.0,2704.5,4.47286]
[1739647755816,5.28,2705.0,2704.5,9.42375009]
[1739647756031,5.28,2705.0,2704.5,5.72629009]
[1739647756184,8.97687,2705.0,2704.5,5.72629009]
[1739647756889,8.97687,2705.0,2704.5,9.42375009]
[1739647757200,5.28,2705.0,2704.5,9.42375009]
[1739647757388,5.28,2705.0,2704.6,0.94237501]
[1739647759528,8.97686,2705.0,2704.6,0.94237501]
[1739647759703,8.97686,2705.0,2704.5,0.7754]
[1739647760026,8.97686,2705.0,2704.5,4.47286]
[1739647760391,0.7958,2704.9,2704.4,3.0]
[1739647760592,3.69714,2704.8,2704.4,3.0]
[1739647761017,6.0758,2704.9,2704.5,3.69751]
[1739647765314,9.77287,2704.9,2704.4,3.0]
[1739647765835,3.69713,2704.8,2704.3,3.69773]
[1739647767031,3.69713,2704.8,2704.3,7.39547]
[1739647767597,3.69713,2704.8,2704.4,3.69767]
[1739647768165,6.0758,2704.9,2704.4,3.69767]
[1739647768332,6.0758,2704.9,2704.5,3.69752]
[1739647768505,6.0758,2704.9,2704.4,3.69767]
[1739647769535,9.77279,2704.9,2704.4,3.69767]
[1739647769902,6.0758,2704.9,2704.4,7.39527]
[1739647770102,6.0758,2704.9,2704.5,3.69753]
[1739647771809,9.77286,2704.9,2704.4,4.77518165]
[1739647772003,9.77286,2704.9,2704.4,3.6976]
[1739647775532,3.69717,2704.8,2704.3,7.88182559]
[1739647776035,9.77286,2704.9,2704.3,7.88182559]
[1739647776632,4.49595,2704.8,2704.3,6.69774]
[1739647780445,0.7988,2704.8,2704.4,3.69766]
[1739647782441,5.28,2704.7,2704.4,3.69766]
[1739647783345,5.28,2704.7,2704.5,3.69745]
[1739647788866,5.28,2704.7,2704.6,3.6974]
[1739647789172,5.28,2704.7,2704.6,4.51796344]
[1739647789351,5.28,2704.7,2704.6,3.6974]
[1739647790856,5.28,2704.7,2704.6,4.471]
[1739647791421,5.28,2704.7,2704.6,8.83496087]
[1739647794271,6.065,2705.2,2704.6,8.83496087]
[1739647794424,6.065,2705.2,2704.8,3.69704]
[1739647794828,6.065,2705.2,2704.8,7.39408]
[1739647795064,6.065,2705.2,2704.9,3.69698]
[1739647800485,6.065,2705.2,2704.7,3.69717]
[1739647800486,6.065,2705.2,2704.8,3.69712]
[1739647801480,6.065,2705.2,2704.8,4.15268031]
[1739647801775,6.065,2705.2,2704.8,0.45556031]
[1739647801997,6.065,2705.2,2704.9,3.69698]
[1739647802492,5.28,2705.2,2705.0,3.69684]
[1739647802793,5.28,2705.3,2705.0,3.69684]
[1739647803144,5.28,2705.3,2705.1,3.69663]
[1739647803785,5.28,2705.3,2705.0,0.70954417]
[1739647803960,5.28,2705.3,2705.0,3.69685]
[1739647805497,5.28,2705.3,2704.9,3.69699]
[1739647805697,0.7556,2705.2,2704.7,6.69715]
[1739647806190,6.0356,2705.2,2704.7,6.69715]
[1739647806401,6.0356,2705.2,2704.7,7.58090109]
[1739647806596,6.0356,2705.2,2704.8,3.69711]
[1739647808048,6.0356,2705.2,2704.7,3.88375109]
[1739647808263,6.0356,2705.2,2704.9,3.6969]
[1739647809366,6.0356,2705.2,2704.9,7.39382]
[1739647810198,6.0356,2705.2,2704.9,3.6969]
[1739647810400,6.0356,2705.2,2705.0,3.69679]
[1739647810608,5.28,2705.2,2705.0,4.47319]